{"text_format":"1","workbook":"xlsx","n_sheets":3,"sheets":["Рапорта","Формулы","Классификатор"],"not_rendered":{"charts":0,"images":0,"macros":1,"external_links":0,"defined_names":15,"comments":0,"pivot_tables":0},"unopened":[],"bounds":{"document_bytes":16777216,"sheet_cells":100000,"rows_first":2000,"rows_last":500,"rows_between":2000,"halvings":0,"cell_chars":16384,"cell_head_chars":4096},"cells_cut":0,"cells_raw":0,"read":"whole","date_system":"1900"}

{"sheet":"Рапорта","index":0,"n_rows":41,"n_cols":7,"rows_kept":41,"cut":false,"hidden":false,"merged":[]}
["Механизм","Узел, деталь","Вид неисправности","Вид неисправности (служ. ячейка)"]
["Мост","Металлоконструкция",{"$f":"IF(D2=1,Классификатор!$E$2,IF(D2=2,Классификатор!$E$3,IF(D2=3,Классификатор!$E$4,IF(D2=4,Классификатор!$E$5,0))))","v":"Электрическая часть"},{"$f":"SUM(IF(Классификатор!$A$2:$A$200=B2,Классификатор!$C$2:$C$200,0))","v":2}]
["Кабина",null,{"$f":"IF(D3=1,$G$48,IF(D3=2,$G$49,IF(D3=3,$G$50,IF(D3=4,$G$51,0))))","v":0},{"$f":"SUM(IF($I$48:$I$150=B3,$K$48:$K$150,0))","v":0}]
["АСУТП",null,0,{"$f":"SUM(IF($I$48:$I$150=B4,$K$48:$K$150,0))","v":0}]
["Гидравлика",null,0,{"$f":"SUM(IF($I$48:$I$150=B5,$K$48:$K$150,0))","v":0},null,null,{"$f":"Классификатор!F2","v":0}]
["Тельфер",null,0,{"$f":"SUM(IF($I$48:$I$150=B6,$K$48:$K$150,0))","v":0}]
["Передвижение телеги",null,0,{"$f":"SUM(IF($I$48:$I$150=B7,$K$48:$K$150,0))","v":0}]
["Главный подъем",null,0,{"$f":"SUM(IF($I$48:$I$150=B8,$K$48:$K$150,0))","v":0}]
["Передвижение телеги",null,0,{"$f":"SUM(IF($I$48:$I$150=B9,$K$48:$K$150,0))","v":0}]
["Передвижение телеги",null,0,{"$f":"SUM(IF($I$48:$I$150=B10,$K$48:$K$150,0))","v":0}]
[null,null,0,{"$f":"SUM(IF($I$48:$I$150=B11,$K$48:$K$150,0))","v":0}]
[null,null,0,{"$f":"SUM(IF($I$48:$I$150=B12,$K$48:$K$150,0))","v":0}]
[null,null,0,{"$f":"SUM(IF($I$48:$I$150=B13,$K$48:$K$150,0))","v":0}]
[null,null,0,{"$f":"SUM(IF($I$48:$I$150=B14,$K$48:$K$150,0))","v":0}]
[null,null,0,{"$f":"SUM(IF($I$48:$I$150=B15,$K$48:$K$150,0))","v":0}]
[null,null,0,{"$f":"SUM(IF($I$48:$I$150=B16,$K$48:$K$150,0))","v":0}]
[null,null,0,{"$f":"SUM(IF($I$48:$I$150=B17,$K$48:$K$150,0))","v":0}]
[null,null,0,{"$f":"SUM(IF($I$48:$I$150=B18,$K$48:$K$150,0))","v":0}]
[null,null,0,{"$f":"SUM(IF($I$48:$I$150=B19,$K$48:$K$150,0))","v":0}]
[null,null,0,{"$f":"SUM(IF($I$48:$I$150=B20,$K$48:$K$150,0))","v":0}]
[null,null,0,{"$f":"SUM(IF($I$48:$I$150=B21,$K$48:$K$150,0))","v":0}]
[null,null,0,{"$f":"SUM(IF($I$48:$I$150=B22,$K$48:$K$150,0))","v":0}]
[null,null,0,{"$f":"SUM(IF($I$48:$I$150=B23,$K$48:$K$150,0))","v":0}]
[null,null,0,{"$f":"SUM(IF($I$48:$I$150=B24,$K$48:$K$150,0))","v":0}]
[null,null,0,{"$f":"SUM(IF($I$48:$I$150=B25,$K$48:$K$150,0))","v":0}]
[null,null,0,{"$f":"SUM(IF($I$48:$I$150=B26,$K$48:$K$150,0))","v":0}]
[null,null,0,{"$f":"SUM(IF($I$48:$I$150=B27,$K$48:$K$150,0))","v":0}]
[null,null,0,{"$f":"SUM(IF($I$48:$I$150=B28,$K$48:$K$150,0))","v":0}]
[null,null,0,{"$f":"SUM(IF($I$48:$I$150=B29,$K$48:$K$150,0))","v":0}]
[null,null,0,{"$f":"SUM(IF($I$48:$I$150=B30,$K$48:$K$150,0))","v":0}]
[null,null,0,{"$f":"SUM(IF($I$48:$I$150=B31,$K$48:$K$150,0))","v":0}]
[null,null,0,{"$f":"SUM(IF($I$48:$I$150=B32,$K$48:$K$150,0))","v":0}]
[null,null,0,{"$f":"SUM(IF($I$48:$I$150=B33,$K$48:$K$150,0))","v":0}]
[null,null,0,{"$f":"SUM(IF($I$48:$I$150=B34,$K$48:$K$150,0))","v":0}]
[null,null,0,{"$f":"SUM(IF($I$48:$I$150=B35,$K$48:$K$150,0))","v":0}]
[null,null,0,{"$f":"SUM(IF($I$48:$I$150=B36,$K$48:$K$150,0))","v":0}]
[null,null,0,{"$f":"SUM(IF($I$48:$I$150=B37,$K$48:$K$150,0))","v":0}]
[null,null,0,{"$f":"SUM(IF($I$48:$I$150=B38,$K$48:$K$150,0))","v":0}]
[null,null,0,{"$f":"SUM(IF($I$48:$I$150=B39,$K$48:$K$150,0))","v":0}]
[null,null,0,{"$f":"SUM(IF($I$48:$I$150=B40,$K$48:$K$150,0))","v":0}]
[null,null,0,{"$f":"SUM(IF($I$48:$I$150=B41,$K$48:$K$150,0))","v":0}]

{"sheet":"Формулы","index":1,"n_rows":3,"n_cols":1,"rows_kept":3,"cut":false,"hidden":false,"merged":[]}
["=ЕСЛИ(A2=Классификатор!$G$1;Мост;ЕСЛИ(A2=Классификатор!$H$1;Телега;ЕСЛИ(A2=Классификатор!$I$1;Кабина;ЕСЛИ(A2=Классификатор!$J$1;Главный_подъем;ЕСЛИ(A2=Классификатор!$K$1;Всп.подъем;ЕСЛИ(A2=Классификатор!$L$1;Электротельфер;ЕСЛИ(A2=Классификатор!$M$1;Желоб;ЕСЛИ(A2=Классификатор!$N$1;Бункер;ЕСЛИ(A2=Классификатор!$O$1;Ключ;ЕСЛИ(A2=Классификатор!$P$1;Гидравлика;ЕСЛИ(A2=Классификатор!$Q$1;АСУТП;ЕСЛИ(A2=Классификатор!$R$1;Троллеи;ЕСЛИ(A2=Классификатор!$S$1;Пути;1)))))))))))))"]
["=ЕСЛИ(A2=Классификатор!$G$1;Мост;ЕСЛИ(A2=Классификатор!$H$1;Телега;ЕСЛИ(A2=Классификатор!$I$1;Кабина;ЕСЛИ(A2=Классификатор!$J$1;Главный_подъем;ЕСЛИ(A2=Классификатор!$K$1;Всп.подъем;ЕСЛИ(A2=Классификатор!$L$1;Электротельфер;ЕСЛИ(A2=Классификатор!$M$1;Желоб;1)))))))"]
["=ЕСЛИ(A2=Классификатор!$G$1;Мост;ЕСЛИ(A2=Классификатор!$H$1;Телега;ЕСЛИ(A2=Классификатор!$I$1;Кабина;ЕСЛИ(A2=Классификатор!$J$1;Главный_подъем;ЕСЛИ(A2=Классификатор!$K$1;Всп.подъем;ЕСЛИ(A2=Классификатор!$L$1;Электротельфер;1))))))"]

{"sheet":"Классификатор","index":2,"n_rows":94,"n_cols":19,"rows_kept":94,"cut":false,"hidden":false,"merged":[]}
[null,null,null,null,null,null,"Мост","Телега","Кабина","Главный подъем","Вспомогательный подъем ","Электротельфер","Желоб","Бункер ПАМ","Ключ","Гидравлика","АСУТП","Троллеи","Крановые пути"]
["Буфер","Механическая часть",{"$f":"SUM(IF(B2=$E$2:$E$10,$D$2:$D$10,0))","v":1},1,"Механическая часть",null,"Буфер","Буфер","Гидротолкатель","Барабан","Барабан","Барабан","Барабан","Барабан","Барабан","Гидрошланги","Видеокамера","Вводной автомат","Боговая накладка"]
["Вводной автомат","Электрическая часть",{"$f":"SUM(IF(B3=$E$2:$E$10,$D$2:$D$10,0))","v":2},2,"Электрическая часть",null,"Вал промежуточный","Вал промежуточный","БКИ","Блочки канатные","Блочки канатные","Блочки канатные","Блочки канатные","Выключатель конечный","Блочки канатные","Гидромагистраль","Лазер","Кронштейн","Огаждене"]
["Выключатель конечный","Электрическая часть",{"$f":"SUM(IF(B4=$E$2:$E$10,$D$2:$D$10,0))","v":2},3,"Гидравлическая часть",null,"Вводной автомат","Выключатель конечный","Блочки канатные","Вал промежуточный","Вал промежуточный","Выключатель конечный","Выключатель конечный","Канат","Вал ключа","Гидропанель","Модуль","Подвод","Прижим"]
["Гидротолкатель","Средства автоматизации",{"$f":"SUM(IF(B5=$E$2:$E$10,$D$2:$D$10,0))","v":4},4,"Средства автоматизации",null,"Выключатель конечный","Гидротолкатель","Выключатель","Выключатель конечный","Выключатель конечный","Изоляция","Изоляция","Крюковая подвеска","Выключатель конечный","Маслостанция","Привод","Рубильник","Сварной шов"]
["Колесо ведомое","Электрическая часть",{"$f":"SUM(IF(B6=$E$2:$E$10,$D$2:$D$10,0))","v":2},5,null,null,"Гидротолкатель","Дроссель","Джойстик","Гидроактиватор","Гидротолкатель","Кабельная подвеска","Канат","Редуктор","Гидромотор","Гидроактиватор","Энкодер","Сигнальный фонарь","Температурный стык"]
["Колесо ведущее","Электрическая часть",{"$f":"SUM(IF(B7=$E$2:$E$10,$D$2:$D$10,0))","v":2},6,null,null,"Изоляция","Изоляция","Звуковой сигнал","Гидротолкатель","Изоляция","Кабельная подвеска","Мотор-редуктор ","Секторный затвор","Гидроцилиндр","Гидроцилиндр"]
["Кабельная подвеска","Электрическая часть",{"$f":"SUM(IF(B8=$E$2:$E$10,$D$2:$D$10,0))","v":2},7,null,null,"Кабельная подвеска","Кабельная подвеска","ЗУКН","Головка АЗУ","Канат","Канат","Тормозной диск","Тормоз","Головка ключа","Штуцера"]
["Линейка ВК","Электрическая часть",{"$f":"SUM(IF(B9=$E$2:$E$10,$D$2:$D$10,0))","v":2},8,null,null,"Колесо ведомое","Колесо ведомое","Изоляция","Изоляция","Крюковая подвеска","Колесо ведомое","Металлоконструкция","Электродвигатель","Канат"]
["Металлоконструкция","Электрическая часть",{"$f":"SUM(IF(B10=$E$2:$E$10,$D$2:$D$10,0))","v":2},9,null,null,"Колесо ведущее","Колесо ведущее","Кабельная подвеска","Изоляция","Металлоконструкция","Колесо ведущее","Гидроцилиндр",null,"Кардан "]
["Метельник","Электрическая часть",{"$f":"SUM(IF(B11=$E$2:$E$10,$D$2:$D$10,0))","v":2},null,null,null,"Линейка ВК","Линейка ВК","Канат","Кабель АЗУ","Редуктор","Крюковая подвеска",null,null,"Мотор-редуктор "]
["Освещение","Электрическая часть",{"$f":"SUM(IF(B12=$E$2:$E$10,$D$2:$D$10,0))","v":2},null,null,null,"Металлоконструкция","Металлоконструкция","Карусель","Канат","Тормозная упряжка","Металлоконструкция",null,null,"Редуктор"]
["Полумуфта","Гидравлическая часть",{"$f":"SUM(IF(B13=$E$2:$E$10,$D$2:$D$10,0))","v":3},null,null,null,"Метельник","Метельник","Ключ-марка","Кормысло","Тормозной шкив","Редуктор",null,null,"Тормоз"]
["Вал промежуточный","Гидравлическая часть",{"$f":"SUM(IF(B14=$E$2:$E$10,$D$2:$D$10,0))","v":3},null,null,null,"Освещение","Подтележечный путь","Кнопки управления","Металлоконструкция","Электродвигатель","Тормоз",null,null,"Электродвигатель"]
["Редуктор","Гидравлическая часть",{"$f":"SUM(IF(B15=$E$2:$E$10,$D$2:$D$10,0))","v":3},null,null,null,"Полумуфта","Полумуфта","Колесо ведомое","Направляющие",null,"Электродвигатель",null,null,"Гидрошланги"]
["Ролики прижимные","Электрическая часть",{"$f":"SUM(IF(B16=$E$2:$E$10,$D$2:$D$10,0))","v":2},null,null,null,"Редуктор","Редуктор","Колесо ведущее","Палец АЗУ"]
["Силовые резисторы","Электрическая часть",{"$f":"SUM(IF(B17=$E$2:$E$10,$D$2:$D$10,0))","v":2},null,null,null,"Ролики прижимные","Тормозная упряжка","Командоконтроллер","Редуктор"]
["Токосъёмники","Электрическая часть",{"$f":"SUM(IF(B18=$E$2:$E$10,$D$2:$D$10,0))","v":2},null,null,null,"Силовые резисторы","Тормозной шкив","Кондиционер","Стакан"]
["Тормозная упряжка","Электрическая часть",{"$f":"SUM(IF(B19=$E$2:$E$10,$D$2:$D$10,0))","v":2},null,null,null,"Токосъёмники","Электродвигатель","Металлоконструкция","Тормозная упряжка"]
["Тормозной шкив","Механическая часть",{"$f":"SUM(IF(B20=$E$2:$E$10,$D$2:$D$10,0))","v":1},null,null,null,"Тормозная упряжка",null,"Монитор","Тормозной шкив"]
["Тросоотбойник","Механическая часть",{"$f":"SUM(IF(B21=$E$2:$E$10,$D$2:$D$10,0))","v":1},null,null,null,"Тормозной шкив",null,"Монорельс","Торсион"]
["Электродвигатель","Средства автоматизации",{"$f":"SUM(IF(B22=$E$2:$E$10,$D$2:$D$10,0))","v":4},null,null,null,"Тросоотбойник",null,"Направляющие","Траверса"]
["Электропанель","Электрическая часть",{"$f":"SUM(IF(B23=$E$2:$E$10,$D$2:$D$10,0))","v":2},null,null,null,"Электродвигатель",null,"Операционная панель","Хвостовик"]
["Изоляция","Электрическая часть",{"$f":"SUM(IF(B24=$E$2:$E$10,$D$2:$D$10,0))","v":2},null,null,null,"Электропанель",null,"Освещение","Штанга"]
["Канат","Механическая часть",{"$f":"SUM(IF(B25=$E$2:$E$10,$D$2:$D$10,0))","v":1},null,null,null,null,null,"Остекление","Щеточный узел"]
["Канат подъёма","Механическая часть",{"$f":"SUM(IF(B26=$E$2:$E$10,$D$2:$D$10,0))","v":1},null,null,null,null,null,"ПКСИ","Электродвигатель"]
["Кардан ","Механическая часть",{"$f":"SUM(IF(B27=$E$2:$E$10,$D$2:$D$10,0))","v":1},null,null,null,null,null,"Редуктор"]
["Колесо ведомое","Механическая часть",{"$f":"SUM(IF(B28=$E$2:$E$10,$D$2:$D$10,0))","v":1},null,null,null,null,null,"Ролики прижимные"]
["Колесо ведомое (лев)","Механическая часть",{"$f":"SUM(IF(B29=$E$2:$E$10,$D$2:$D$10,0))","v":1},null,null,null,null,null,"Тормозная упряжка"]
["Колесо ведомое (прав)","Механическая часть",{"$f":"SUM(IF(B30=$E$2:$E$10,$D$2:$D$10,0))","v":1},null,null,null,null,null,"Тормозной шкив"]
["Колесо ведущее","Механическая часть",{"$f":"SUM(IF(B31=$E$2:$E$10,$D$2:$D$10,0))","v":1},null,null,null,null,null,"Электродвигатель"]
["Колесо ведущее (лев)","Механическая часть",{"$f":"SUM(IF(B32=$E$2:$E$10,$D$2:$D$10,0))","v":1},null,null,null,null,null,"Электропечь"]
["Колесо ведущее (прав)","Механическая часть",{"$f":"SUM(IF(B33=$E$2:$E$10,$D$2:$D$10,0))","v":1}]
["Контроллер","Электрическая часть",{"$f":"SUM(IF(B34=$E$2:$E$10,$D$2:$D$10,0))","v":2}]
["Кормысло","Механическая часть",{"$f":"SUM(IF(B35=$E$2:$E$10,$D$2:$D$10,0))","v":1}]
["КПК","Электрическая часть",{"$f":"SUM(IF(B36=$E$2:$E$10,$D$2:$D$10,0))","v":2}]
["КПТ","Электрическая часть",{"$f":"SUM(IF(B37=$E$2:$E$10,$D$2:$D$10,0))","v":2}]
["Крюковая подвеска","Механическая часть",{"$f":"SUM(IF(B38=$E$2:$E$10,$D$2:$D$10,0))","v":1}]
["Лазер","Средства автоматизации",{"$f":"SUM(IF(B39=$E$2:$E$10,$D$2:$D$10,0))","v":4}]
["Линейка ВК","Электрическая часть",{"$f":"SUM(IF(B40=$E$2:$E$10,$D$2:$D$10,0))","v":2}]
["М\\магистраль","Гидравлическая часть",{"$f":"SUM(IF(B41=$E$2:$E$10,$D$2:$D$10,0))","v":3},null,null,null,"НЕ ОПРЕДЕЛЕНО","НЕ ОПРЕДЕЛЕНО","НЕ ОПРЕДЕЛЕНО","НЕ ОПРЕДЕЛЕНО","НЕ ОПРЕДЕЛЕНО","НЕ ОПРЕДЕЛЕНО","НЕ ОПРЕДЕЛЕНО","НЕ ОПРЕДЕЛЕНО","НЕ ОПРЕДЕЛЕНО","НЕ ОПРЕДЕЛЕНО","НЕ ОПРЕДЕЛЕНО","НЕ ОПРЕДЕЛЕНО","НЕ ОПРЕДЕЛЕНО"]
["Модуль","Средства автоматизации",{"$f":"SUM(IF(B42=$E$2:$E$10,$D$2:$D$10,0))","v":4}]
["Мотор-редуктор ","Механическая часть",{"$f":"SUM(IF(B43=$E$2:$E$10,$D$2:$D$10,0))","v":1}]
["Мотор-редуктор (карусель)","Механическая часть",{"$f":"SUM(IF(B44=$E$2:$E$10,$D$2:$D$10,0))","v":1}]
["Мотор-редуктор (отвод)","Механическая часть",{"$f":"SUM(IF(B45=$E$2:$E$10,$D$2:$D$10,0))","v":1}]
["Мотор-редуктор (подъём)","Механическая часть",{"$f":"SUM(IF(B46=$E$2:$E$10,$D$2:$D$10,0))","v":1}]
["Мотор-редуктор (подъём)","Механическая часть",{"$f":"SUM(IF(B47=$E$2:$E$10,$D$2:$D$10,0))","v":1}]
["Опрокидывание дозатора (г\\активатор)","Гидравлическая часть",{"$f":"SUM(IF(B48=$E$2:$E$10,$D$2:$D$10,0))","v":3}]
["Освещение","Электрическая часть",{"$f":"SUM(IF(B49=$E$2:$E$10,$D$2:$D$10,0))","v":2}]
["Палец АЗУ","Механическая часть",{"$f":"SUM(IF(B50=$E$2:$E$10,$D$2:$D$10,0))","v":1}]
["Печь","Электрическая часть",{"$f":"SUM(IF(B51=$E$2:$E$10,$D$2:$D$10,0))","v":2}]
["ПКСИ","Электрическая часть",{"$f":"SUM(IF(B52=$E$2:$E$10,$D$2:$D$10,0))","v":2}]
["Поворот жёлоба","Гидравлическая часть",{"$f":"SUM(IF(B53=$E$2:$E$10,$D$2:$D$10,0))","v":3}]
["Подкрановое освещение","Электрическая часть",{"$f":"SUM(IF(B54=$E$2:$E$10,$D$2:$D$10,0))","v":2}]
["Подтележечный путь","Механическая часть",{"$f":"SUM(IF(B55=$E$2:$E$10,$D$2:$D$10,0))","v":1}]
["Подъём/опускание ключа","Электрическая часть",{"$f":"SUM(IF(B56=$E$2:$E$10,$D$2:$D$10,0))","v":2}]
["Полумуфта","Механическая часть",{"$f":"SUM(IF(B57=$E$2:$E$10,$D$2:$D$10,0))","v":1}]
["Привод","Средства автоматизации",{"$f":"SUM(IF(B58=$E$2:$E$10,$D$2:$D$10,0))","v":4}]
["Промежут.вал (вертик.)","Механическая часть",{"$f":"SUM(IF(B59=$E$2:$E$10,$D$2:$D$10,0))","v":1}]
["Промежут.вал (горизонт.)","Механическая часть",{"$f":"SUM(IF(B60=$E$2:$E$10,$D$2:$D$10,0))","v":1}]
["Редуктор","Механическая часть",{"$f":"SUM(IF(B61=$E$2:$E$10,$D$2:$D$10,0))","v":1}]
["Редуктор  вращения","Механическая часть",{"$f":"SUM(IF(B62=$E$2:$E$10,$D$2:$D$10,0))","v":1}]
["Редуктор (верхний)","Механическая часть",{"$f":"SUM(IF(B63=$E$2:$E$10,$D$2:$D$10,0))","v":1}]
["Редуктор (вращения)","Механическая часть",{"$f":"SUM(IF(B64=$E$2:$E$10,$D$2:$D$10,0))","v":1}]
["Редуктор (вращения)","Механическая часть",{"$f":"SUM(IF(B65=$E$2:$E$10,$D$2:$D$10,0))","v":1}]
["Редуктор (нижний)","Механическая часть",{"$f":"SUM(IF(B66=$E$2:$E$10,$D$2:$D$10,0))","v":1}]
["Редуктор (подъём)","Механическая часть",{"$f":"SUM(IF(B67=$E$2:$E$10,$D$2:$D$10,0))","v":1}]
["Редуктор передвижения","Механическая часть",{"$f":"SUM(IF(B68=$E$2:$E$10,$D$2:$D$10,0))","v":1}]
["Редуктор планетарный","Механическая часть",{"$f":"SUM(IF(B69=$E$2:$E$10,$D$2:$D$10,0))","v":1}]
["Редуктор подъёма","Механическая часть",{"$f":"SUM(IF(B70=$E$2:$E$10,$D$2:$D$10,0))","v":1}]
["Секторный (СЗТМ)","Механическая часть",{"$f":"SUM(IF(B71=$E$2:$E$10,$D$2:$D$10,0))","v":1}]
["Стакан","Механическая часть",{"$f":"SUM(IF(B72=$E$2:$E$10,$D$2:$D$10,0))","v":1}]
["Тормозная упряжка","Механическая часть",{"$f":"SUM(IF(B73=$E$2:$E$10,$D$2:$D$10,0))","v":1}]
["Тормозная упряжка (вращения)","Механическая часть",{"$f":"SUM(IF(B74=$E$2:$E$10,$D$2:$D$10,0))","v":1}]
["Тормозная упряжка (подъём)","Механическая часть",{"$f":"SUM(IF(B75=$E$2:$E$10,$D$2:$D$10,0))","v":1}]
["Тормозной диск","Механическая часть",{"$f":"SUM(IF(B76=$E$2:$E$10,$D$2:$D$10,0))","v":1}]
["Тормозной шкив","Механическая часть",{"$f":"SUM(IF(B77=$E$2:$E$10,$D$2:$D$10,0))","v":1}]
["Тормозной шкив (вращения)","Механическая часть",{"$f":"SUM(IF(B78=$E$2:$E$10,$D$2:$D$10,0))","v":1}]
["Тормозной шкив (подъём)","Механическая часть",{"$f":"SUM(IF(B79=$E$2:$E$10,$D$2:$D$10,0))","v":1}]
["Торсион","Механическая часть",{"$f":"SUM(IF(B80=$E$2:$E$10,$D$2:$D$10,0))","v":1}]
["Траверса","Механическая часть",{"$f":"SUM(IF(B81=$E$2:$E$10,$D$2:$D$10,0))","v":1}]
["Ур/блок","Механическая часть",{"$f":"SUM(IF(B82=$E$2:$E$10,$D$2:$D$10,0))","v":1}]
["Хвостовик","Механическая часть",{"$f":"SUM(IF(B83=$E$2:$E$10,$D$2:$D$10,0))","v":1}]
["Цепь","Механическая часть",{"$f":"SUM(IF(B84=$E$2:$E$10,$D$2:$D$10,0))","v":1}]
["Штанга","Механическая часть",{"$f":"SUM(IF(B85=$E$2:$E$10,$D$2:$D$10,0))","v":1}]
["Штуцера","Гидравлическая часть",{"$f":"SUM(IF(B86=$E$2:$E$10,$D$2:$D$10,0))","v":3}]
["Электродвигатель","Электрическая часть",{"$f":"SUM(IF(B87=$E$2:$E$10,$D$2:$D$10,0))","v":2}]
["Электродвигатель (вращения)","Электрическая часть",{"$f":"SUM(IF(B88=$E$2:$E$10,$D$2:$D$10,0))","v":2}]
["электродвигатель (подъём)","Электрическая часть",{"$f":"SUM(IF(B89=$E$2:$E$10,$D$2:$D$10,0))","v":2}]
["Электродвигатель передвижения","Электрическая часть",{"$f":"SUM(IF(B90=$E$2:$E$10,$D$2:$D$10,0))","v":2}]
["Энкодер","Средства автоматизации",{"$f":"SUM(IF(B91=$E$2:$E$10,$D$2:$D$10,0))","v":4}]
["Токосъёмники","Электрическая часть",{"$f":"SUM(IF(B92=$E$2:$E$10,$D$2:$D$10,0))","v":2}]
["Г\\панель","Гидравлическая часть",{"$f":"SUM(IF(B93=$E$2:$E$10,$D$2:$D$10,0))","v":3}]
["Направляющие","Механическая часть",{"$f":"SUM(IF(B94=$E$2:$E$10,$D$2:$D$10,0))","v":1}]